{"text_format":"1","workbook":"xlsx","n_sheets":6,"sheets":["表紙","自己採点シート","学習自己点検シート ","単位修得状況確認表（共通教育科目，外国人留学生）","単位修得状況確認表（専門教育科目）","累積グラフ"],"not_rendered":{"charts":9,"images":3,"macros":1,"external_links":0,"defined_names":17,"comments":0,"pivot_tables":0},"unopened":[],"bounds":{"document_bytes":16777216,"sheet_cells":100000,"rows_first":2000,"rows_last":500,"rows_between":2000,"halvings":0,"cell_chars":16384,"cell_head_chars":4096},"cells_cut":0,"cells_raw":0,"read":"whole","date_system":"1900"}

{"sheet":"表紙","index":0,"n_rows":34,"n_cols":2,"rows_kept":34,"cut":false,"hidden":false,"merged":[]}
[]
[]
[]
[]
[]
[]
[]
[]
[]
[]
[]
[null,"鹿児島大学工学部ポートフォリオ"]
[]
[]
[]
[]
[]
[]
[]
[]
[]
[]
[]
[]
[]
[]
[]
[]
[]
[]
[null,"入学年度：平成31年度"]
[null,"学科：化学生命工学科"]
[null,"氏名："]
[null,"学籍番号："]

{"sheet":"自己採点シート","index":1,"n_rows":22,"n_cols":21,"rows_kept":22,"cut":false,"hidden":false,"merged":[[19,2,19,5],[20,2,20,5],[21,2,21,5],[13,2,13,5],[14,2,14,5],[15,2,15,5],[16,2,16,5],[17,2,17,5],[18,2,18,5],[12,2,12,5],[3,10,3,11],[3,19,3,20],[9,2,9,5],[10,2,10,5],[11,2,11,5]]}
[]
[null,"自己採点シート"]
[]
[null,null,null,null,null,null,null,null,null,"学籍番号",null,null,"氏名"]
[]
[null,"■学生のみなさんへ"]
[null,null,"今期受講した科目に関して、以下の項目に対して自己採点をしてください。(１０点満点)"]
[]
[]
[null,null,"項目",null,null,null,"2019年度\n前期","2019年度\n後期","2020年度\n前期","2020年度\n後期","2021年度\n前期","2021年度\n後期","2022年度\n前期","2022年度\n後期","2023年度\n前期","2023年度\n後期","2024年度\n前期","2024年度\n後期","2025年度\n前期","2025年度\n後期","卒業時"]
[null,1,"工学に関しての基礎知識\n（物理・化学・数学・情報など）"]
[null,2,"各工学分野での基礎知識\n（専門科目など）"]
[null,3,"人前での発表能力"]
[null,4,"人と話し合ったり議論する能力"]
[null,5,"チームの一員として取り組める（チームワーク）能力"]
[null,6,"英語、その他外国語による表現力"]
[null,7,"読書、講習会への参加、英会話や情報処理学習など大学以外での学習による自己啓発・生涯学習能力"]
[null,8,"社会性や国際感覚が身についているか。"]
[null,9,"倫理観、責任感が身についているか。"]
[null,10]
[null,11]
[null,12]

{"sheet":"学習自己点検シート ","index":2,"n_rows":68,"n_cols":13,"rows_kept":68,"cut":false,"hidden":false,"merged":[[4,8,4,9],[4,11,4,12],[7,2,7,12]]}
[]
[null,null,null,null,null,null,null,null,null,null,null,"年度","期"]
[null,"学習自己点検シート"]
[]
[null,null,null,null,null,null,null,"学籍番号",null,null,"氏名"]
[]
[null,"■学生のみなさんへ"]
[null,null,"学生生活全般に関して自己点検をお願いしています。今期受講した科目に関して、以下の質問項目に答えてください。面談時、指導教員（アドバイザー）の先生方から回答に対する具体的なアドバイスを受けてください。"]
[]
[]
[null,"■回答項目"]
[]
[null,1,"今期の目標は達成できましたか。"]
[]
[]
[]
[]
[null,2,"講義への取り組みは積極的でしたか。また、積極的に取り組むことができなかった講義は具体的に何ですか。"]
[]
[]
[]
[]
[null,3,"講義毎に勉強方法がつかめていますか。"]
[]
[]
[]
[]
[null,4,"それぞれの講義の理解度は自分の目標に達していますか。理解度が足りないと感じている講義は何ですか。"]
[]
[]
[]
[]
[null,5,"平日（試験勉強以外）１日当たりの勉強時間（平均）はどのくらいですか。勉強時間が足りないと感じている講義は何ですか。"]
[]
[]
[]
[]
[null,6,"アルバイトと勉強は両立できましたか。"]
[]
[]
[]
[]
[null,7,"サークル活動と勉強は両立できましたか。"]
[]
[]
[]
[]
[null,8,"卒業後の進路についてどのように考えていますか。"]
[]
[]
[]
[]
[null,9,"その他、アドバイスが必要なことはありますか。"]
[]
[]
[]
[]
[null,10]
[]
[]
[]
[]
[null,11]
[]
[]
[]
[]
[null,12]

{"sheet":"単位修得状況確認表（共通教育科目，外国人留学生）","index":3,"n_rows":37,"n_cols":49,"rows_kept":37,"cut":false,"hidden":false,"merged":[[28,0,28,6],[28,7,28,8],[28,9,28,10],[28,11,28,12],[28,13,28,14],[27,7,27,8],[27,9,27,10],[27,11,27,12],[27,13,27,14],[28,27,28,28],[28,15,28,16],[28,17,28,18],[28,19,28,20],[28,21,28,22],[28,23,28,24],[28,25,28,26],[24,0,24,6],[25,1,25,10],[26,39,26,40],[27,37,27,38],[27,15,27,16],[27,17,27,18],[27,19,27,20],[27,21,27,22],[27,23,27,24],[27,25,27,26],[27,27,27,28],[27,29,27,30],[27,31,27,32],[27,33,27,34],[27,35,27,36],[27,0,27,6],[21,40,22,40],[4,35,4,36],[6,0,16,0],[6,1,11,3],[9,4,10,4],[12,1,13,3],[4,25,4,26],[4,27,4,28],[4,29,4,30],[4,31,4,32],[3,11,3,14],[3,15,3,18],[3,19,3,22],[3,23,3,26],[17,0,23,0],[17,1,20,3],[18,4,20,4],[21,1,22,3],[14,1,15,3],[4,17,4,18],[4,19,4,20],[4,21,4,22],[4,23,4,24],[1,0,1,41],[2,0,5,6],[2,7,2,38],[2,39,5,39],[2,40,5,40],[2,41,5,41],[4,7,4,8],[4,9,4,10],[4,11,4,12],[4,13,4,14],[4,37,4,38],[4,15,4,16],[4,33,4,34],[3,27,3,30],[3,31,3,34],[3,7,3,10],[29,35,29,36],[29,37,29,38],[29,25,29,26],[29,27,29,28],[29,29,29,30],[29,31,29,32],[29,33,29,34],[3,35,3,38],[28,29,28,30],[28,31,28,32],[28,33,28,34],[28,35,28,36],[28,37,28,38],[29,0,29,6],[29,7,29,8],[29,9,29,10],[29,11,29,12],[29,13,29,14],[29,15,29,16],[29,17,29,18],[29,19,29,20],[29,21,29,22],[29,23,29,24]]}
[null,null,null,null,null,null,null,null,null,null,null,null,null,null,null,null,null,null,null,null,null,null,null,null,null,null,null,null,null,null,null,null,null,null,null,null,null,null,null,null,null,null,null,null,null,null,null,null,"A"]
["単位修得状況確認表（共通教育科目：外国人留学生）",null,null,null,null,null,null,null,null,null,null,null,null,null,null,null,null,null,null,null,null,null,null,null,null,null,null,null,null,null,null,null,null,null,null,null,null,null,null,null,null,null,null,null,null,null,null,null,"B"]
["　",null,null,null,null,null,null,"取得単位数およびGP",null,null,null,null,null,null,null,null,null,null,null,null,null,null,null,null,null,null,null,null,null,null,null,null,null,null,null,null,null,null,null,"取得単位数","要修得\n単位数","累積GP",null,null,"当該期修得単位の入力要領（共通教育科目）",null,null,null,"C"]
[null,null,null,null,null,null,null,"　年次",null,null,null,"　年次",null,null,null,"　年次",null,null,null,"　年次",null,null,null,"　年次",null,null,null,"　年次",null,null,null,"　年次",null,null,null,"　年次",null,null,null,null,null,null,null,null,"１．黄色枠に各科目(英語及び日本語の場合は修得",null,null,null,"D"]
[null,null,null,null,null,null,null,"１期",null,"２期",null,"３期",null,"４期",null,"５期",null,"６期",null,"７期",null,"８期",null,"９期",null,"10期",null,"11期",null,"12期",null,"13期",null,"14期",null,"15期",null,"16期",null,null,null,null,null,null,"　　した合計単位数)の修得単位数を記入する。",null,null,null,"F"]
[null,null,null,null,null,null,null,"単位","合計GP","単位","合計GP","単位","合計GP","単位","合計GP","単位","合計GP","単位","合計GP","単位","合計GP","単位","合計GP","単位","合計GP","単位","合計GP","単位","合計GP","単位","合計GP","単位","合計GP","単位","合計GP","単位","合計GP","単位","合計GP",null,null,null,null,null,"２．オレンジ枠に修得した必修科目・選択必修",null,null,null,"P"]
["必修科目","初年次教育科目",null,null,"初年次セミナーⅠ",null,null,null,null,null,null,null,null,null,null,null,null,null,null,null,null,null,null,null,null,null,null,null,null,null,null,null,null,null,null,null,null,null,null,{"$f":"SUM(H7,J7,L7,N7,P7,R7,T7,V7,X7,Z7,AB7,AD7,AF7,AH7,AJ7,AL7)","v":0},2,null,null,null,"　　科目それぞれの合計単位数を記入する。"]
[null,null,null,null,"初年次セミナーⅡ",null,null,null,null,null,null,null,null,null,null,null,null,null,null,null,null,null,null,null,null,null,null,null,null,null,null,null,null,null,null,null,null,null,null,{"$f":"SUM(H8,J8,L8,N8,P8,R8,T8,V8,X8,Z8,AB8,AD8,AF8,AH8,AJ8,AL8)","v":0},"－",null,null,null,"３．灰色枠に受講科目の合計GP（単位数×GP）"]
[null,null,null,null,"大学と地域",null,null,null,null,null,null,null,null,null,null,null,null,null,null,null,null,null,null,null,null,null,null,null,null,null,null,null,null,null,null,null,null,null,null,0,2,null,null,null,"　　を計算し、その値を入力する。"]
[null,null,null,null,"体育・健康","理論",null,null,null,null,null,null,null,null,null,null,null,null,null,null,null,null,null,null,null,null,null,null,null,null,null,null,null,null,null,null,null,null,null,0,1,null,null,null,"　（評価とGPの関係：A=4,B=3,C=2,D=1,F=0,Pは"]
[null,null,null,null,null,"実習",null,null,null,null,null,null,null,null,null,null,null,null,null,null,null,null,null,null,null,null,null,null,null,null,null,null,null,null,null,null,null,null,null,0,1,null,null,null,"　　GPの該当外なので合計GP欄は空欄とする。）"]
[null,null,null,null,"情報活用",null,null,null,null,null,null,null,null,null,null,null,null,null,null,null,null,null,null,null,null,null,null,null,null,null,null,null,null,null,null,null,null,null,null,0,2,null,null,null,"４．取得単位数を要修得単位数と比較して、"]
[null,"ｸﾞﾛｰﾊﾞﾙ教育科目",null,null,"英語",null,null,null,null,null,null,null,null,null,null,null,null,null,null,null,null,null,null,null,null,null,null,null,null,null,null,null,null,null,null,null,null,null,null,0,6,null,null,null,"　　単位取得状況を把握する。"]
[null,null,null,null,"異文化理解",null,null,null,null,null,null,null,null,null,null,null,null,null,null,null,null,null,null,null,null,null,null,null,null,null,null,null,null,null,null,null,null,null,null,0,2]
[null,"日本語・日本事情科目",null,null,"日本語",null,null,null,null,null,null,null,null,null,null,null,null,null,null,null,null,null,null,null,null,null,null,null,null,null,null,null,null,null,null,null,null,null,null,0,4,null,null,null,"※期をまたがって開講される科目は、成績の出"]
[null,null,null,null,"日本事情",null,null,null,null,null,null,null,null,null,null,null,null,null,null,null,null,null,null,null,null,null,null,null,null,null,null,null,null,null,null,null,null,null,null,0,"(4)",null,null,null,"　された期に記入する。例えば通年の場合、後"]
[null,"必修科目　計",null,null,null,null,null,null,{"$f":"SUM(I7:I16)","v":0},null,{"$f":"SUM(K7:K16)","v":0},null,{"$f":"SUM(M7:M16)","v":0},null,{"$f":"SUM(O7:O16)","v":0},null,{"$f":"SUM(Q7:Q16)","v":0},null,{"$f":"SUM(S7:S16)","v":0},null,{"$f":"SUM(U7:U16)","v":0},null,{"$f":"SUM(W7:W16)","v":0},null,{"$f":"SUM(Y7:Y16)","v":0},null,{"$f":"SUM(AA7:AA16)","v":0},null,{"$f":"SUM(AC7:AC16)","v":0},null,{"$f":"SUM(AE7:AE16)","v":0},null,{"$f":"SUM(AG7:AG16)","v":0},null,{"$f":"SUM(AI7:AI16)","v":0},null,{"$f":"SUM(AK7:AK16)","v":0},null,{"$f":"SUM(AM7:AM16)","v":0},0,20,{"$f":"SUM(I17,K17,M17,O17,Q17,S17,U17,W17,Y17,AA17,AC17,AE17,AG17,AI17,AK17,AM17)","v":0},null,null,"　期に記入する。"]
["選択必修科目","教養教育科目",null,null,"人文・社会科学分野","選択科目",null,null,null,null,null,null,null,null,null,null,null,null,null,null,null,null,null,null,null,null,null,null,null,null,null,null,null,null,null,null,null,null,null,0,4,null,null,null,"※本表最下部の表の入力方法について"]
[null,null,null,null,"自然科学分野","実験科目",null,null,null,null,null,null,null,null,null,null,null,null,null,null,null,null,null,null,null,null,null,null,null,null,null,null,null,null,null,null,null,null,null,0,1,null,null,null,"　・P評価の単位数は、当該期①の欄に、"]
[null,null,null,null,null,"選択科目",null,null,null,null,null,null,null,null,null,null,null,null,null,null,null,null,null,null,null,null,null,null,null,null,null,null,null,null,null,null,null,null,null,0,2,null,null,null,"　・F評価の単位数は、当該期②の欄に、"]
[null,null,null,null,null,"基礎教育入門科目",null,null,null,null,null,null,null,null,null,null,null,null,null,null,null,null,null,null,null,null,null,null,null,null,null,null,null,null,null,null,null,null,null,0,2,null,null,null,"　・評価F科目の再履修での修得単位数は当該"]
[null,"教養活用科目",null,null,"統合Ⅰ（課題発見）",null,null,null,null,null,null,null,null,null,null,null,null,null,null,null,null,null,null,null,null,null,null,null,null,null,null,null,null,null,null,null,null,null,null,0,4,null,null,null,"　　期③の欄に入力する。なお、②には再履修"]
[null,null,null,null,"統合Ⅱ（課題解決）",null,null,null,null,null,null,null,null,null,null,null,null,null,null,null,null,null,null,null,null,null,null,null,null,null,null,null,null,null,null,null,null,null,null,0,null,null,null,null,"　　の科目は含まない。"]
[null,"選択必修科目　計",null,null,null,null,null,null,{"$f":"SUM(I18:I23)","v":0},null,{"$f":"SUM(K18:K23)","v":0},null,{"$f":"SUM(M18:M23)","v":0},null,{"$f":"SUM(O18:O23)","v":0},null,{"$f":"SUM(Q18:Q23)","v":0},null,{"$f":"SUM(S18:S23)","v":0},null,{"$f":"SUM(U18:U23)","v":0},null,{"$f":"SUM(W18:W23)","v":0},null,{"$f":"SUM(Y18:Y23)","v":0},null,{"$f":"SUM(AA18:AA23)","v":0},null,{"$f":"SUM(AC18:AC23)","v":0},null,{"$f":"SUM(AE18:AE23)","v":0},null,{"$f":"SUM(AG18:AG23)","v":0},null,{"$f":"SUM(AI18:AI23)","v":0},null,{"$f":"SUM(AK18:AK23)","v":0},null,{"$f":"SUM(AM18:AM23)","v":0},0,13,{"$f":"SUM(I24,K24,M24,O24,Q24,S24,U24,W24,Y24,AA24,AC24,AE24,AG24,AI24,AK24,AM24)","v":0},null,null,"※評価Fの科目を再履修して単位を修得した場合"]
["全科目合計",null,null,null,null,null,null,{"$f":"H17+H24","v":0},{"$f":"I17+I24","v":0},{"$f":"J17+J24","v":0},0,0,0,0,0,0,0,0,0,0,0,0,0,0,0,0,0,0,0,0,0,0,0,0,0,0,0,0,0,0,33,{"$f":"SUM(I25,K25,M25,O25,Q25,S25,U25,W25,Y25,AA25,AC25,AE25,AG25,AI25,AK25,AM25)","v":0},null,null,"　の入力方法について"]
["※","「期を増やす」欄により学年を４年間増やすことが可。",null,null,null,null,null,null,null,null,null,null,null,null,null,null,null,null,null,null,null,null,null,null,null,null,null,null,null,null,null,null,null,null,null,null,null,null,null,null,null,null,null,null,"　上記1～3の手順で入力する。"]
[null,null,null,null,null,null,null,null,null,null,null,null,null,null,null,null,null,null,null,null,null,null,null,null,null,null,null,null,null,null,null,null,null,null,null,null,null,null,null,null,null,null,null,null,"※既修得単位（D以上）の科目を再履修して単位を"]
["①【共通教育科目】評価Pの単位数",null,null,null,null,null,null,null,null,null,null,null,null,null,null,null,null,null,null,null,null,null,null,null,null,null,null,null,null,null,null,null,null,null,null,null,null,null,null,{"$f":"SUM(H28:AM28)","v":0},null,null,null,null,"　修得した場合の入力方法について"]
["②【共通教育科目】不合格（評価F）の単位数",null,null,null,null,null,null,null,null,null,null,null,null,null,null,null,null,null,null,null,null,null,null,null,null,null,null,null,null,null,null,null,null,null,null,null,null,null,null,{"$f":"SUM(H29:AM29)","v":0},null,null,null,null,"　上記1～3の手順で入力した後、以前の評価（"]
["③【共通教育科目】評価F科目の再履修での修得単位数",null,null,null,null,null,null,null,null,null,null,null,null,null,null,null,null,null,null,null,null,null,null,null,null,null,null,null,null,null,null,null,null,null,null,null,null,null,null,{"$f":"SUM(H30:AM30)","v":0},null,null,null,null,"  黄色枠）と合計GP（灰色枠）を削除し、オレ"]
[null,null,null,null,null,null,null,null,null,null,null,null,null,null,null,null,null,null,null,null,null,null,null,null,null,null,null,null,null,null,null,null,null,null,null,null,null,null,null,null,null,null,null,null,"　ンジ枠の合計修得単位数から再履修で修得し"]
[null,null,null,null,null,null,null,null,null,null,null,null,null,null,null,null,null,null,null,null,null,null,null,null,null,null,null,null,null,null,null,null,null,null,null,null,null,null,null,null,null,null,null,null,"　た単位数を引いた値を再入力する。"]
[]
[]
[null,null,null,null,null,null,null,null,null,null,null,null,null,null,null,null,null,null,null,null,null,null,null,null,null,null,null,null,null,null,null,null,null,null,null,null,null,null,null,null,null,null,null,null,"（補足説明）"]
[null,null,null,null,null,null,null,null,null,null,null,null,null,null,null,null,null,null,null,null,null,null,null,null,null,null,null,null,null,null,null,null,null,null,null,null,null,null,null,null,null,null,null,null,"※留年した場合は「期を増やす」欄で列を増"]
[null,null,null,null,null,null,null,null,null,null,null,null,null,null,null,null,null,null,null,null,null,null,null,null,null,null,null,null,null,null,null,null,null,null,null,null,null,null,null,null,null,null,null,null,"　やす。"]

{"sheet":"単位修得状況確認表（専門教育科目）","index":4,"n_rows":80,"n_cols":47,"rows_kept":80,"cut":false,"hidden":false,"merged":[[78,30,78,31],[78,32,78,33],[78,34,78,35],[77,30,77,31],[75,36,75,37],[68,41,70,41],[78,20,78,21],[78,22,78,23],[78,24,78,25],[78,26,78,27],[78,28,78,29],[77,20,77,21],[77,22,77,23],[77,24,77,25],[77,26,77,27],[77,28,77,29],[78,8,78,9],[78,10,78,11],[78,12,78,13],[78,14,78,15],[78,16,78,17],[4,26,4,27],[1,0,1,38],[2,36,5,36],[2,38,5,38],[4,22,4,23],[2,37,5,37],[3,20,3,23],[4,32,4,33],[3,28,3,31],[4,12,4,13],[4,14,4,15],[4,16,4,17],[4,4,4,5],[3,8,3,11],[3,12,3,15],[4,8,4,9],[4,10,4,11],[3,16,3,19],[4,18,4,19],[2,0,5,1],[12,0,12,3],[14,1,32,1],[14,0,32,0],[35,0,43,0],[33,0,33,3],[6,0,11,0],[3,4,3,7],[4,6,4,7],[2,4,2,35],[4,34,4,35],[4,28,4,29],[4,30,4,31],[3,32,3,35],[4,20,4,21],[3,24,3,27],[4,24,4,25],[77,8,77,9],[77,10,77,11],[77,12,77,13],[77,14,77,15],[7,42,32,42],[35,42,43,42],[46,42,56,42],[59,42,70,42],[77,32,77,33],[77,34,77,35],[75,1,75,10],[46,1,56,1],[59,1,70,1],[6,1,11,1],[77,18,77,19],[73,0,73,3],[74,0,74,3],[77,4,77,5],[44,0,44,3],[46,0,56,0],[57,0,57,3],[59,0,70,0],[77,0,77,3],[35,1,43,1],[77,16,77,17],[71,0,71,3],[79,32,79,33],[79,34,79,35],[79,0,79,3],[79,22,79,23],[79,24,79,25],[79,26,79,27],[79,28,79,29],[79,30,79,31],[79,12,79,13],[79,14,79,15],[79,16,79,17],[79,18,79,19],[79,20,79,21],[79,4,79,5],[79,6,79,7],[79,8,79,9],[79,10,79,11],[78,18,78,19],[78,0,78,3],[78,4,78,5],[78,6,78,7],[77,6,77,7]]}
[null,null,null,null,null,null,null,null,null,null,null,null,null,null,null,null,null,null,null,null,null,null,null,null,null,null,null,null,null,null,null,null,null,null,null,null,null,null,null,null,null,null,null,"A"]
["単位修得状況確認表（専門教育科目）",null,null,null,null,null,null,null,null,null,null,null,null,null,null,null,null,null,null,null,null,null,null,null,null,null,null,null,null,null,null,null,null,null,null,null,null,null,null,null,null,"受講科目の単位入力要領（専門教育科目）",null,"B"]
["区分",null,"授","単","履修科目の評価およびGP",null,null,null,null,null,null,null,null,null,null,null,null,null,null,null,null,null,null,null,null,null,null,null,null,null,null,null,null,null,null,null,"取得単位数","要修得\n単位数","累積GP",null,null,"STEP１",null,"C"]
[null,null,"業"," ","　年次",null,null,null,"　年次",null,null,null,"　年次",null,null,null,"　年次",null,null,null,"　年次",null,null,null,"　年次",null,null,null,"　年次",null,null,null,"　年次",null,null,null,null,null,null,null,null,"当該期に受講した科目の単位を区分ごとに以下の手順で",null,"D"]
[null,null,"科",null,"１期",null,"２期",null,"３期",null,"４期",null,"５期",null,"６期",null,"７期",null,"８期",null,"９期",null,"10期",null,"11期",null,"12期",null,"13期",null,"14期",null,"15期",null,"16期",null,null,null,null,null,null,"入力し、要修得単位数と比較して単位取得状況を把握",null,"F"]
[null,null,"目","位","評価","合計GP","評価","合計GP","評価","合計GP","評価","合計GP","評価","合計GP","評価","合計GP","評価","合計GP","評価","合計GP","評価","合計GP","評価","合計GP","評価","合計GP","評価","合計GP","評価","合計GP","評価","合計GP","評価","合計GP","評価","合計GP",null,null,null,null,null,"する。",null,"P"]
["基礎教育科目","必\n修\n科\n目","微分積分学A I",2]
[null,null,"線形代数学Ⅰ",2,null,null,null,null,null,null,null,null,null,null,null,null,null,null,null,null,null,null,null,null,null,null,null,null,null,null,null,null,null,null,null,null,null,null,null,null,null,"１．黄色枠に受講科目の評価（A,B,C,D,F,P）を入力する。","必\n修\n科\n目",250152511101,{"$f":"C8","v":"線形代数学Ⅰ"}]
[null,null,"物理学基礎A I",2,null,null,null,null,null,null,null,null,null,null,null,null,null,null,null,null,null,null,null,null,null,null,null,null,null,null,null,null,null,null,null,null,null,null,null,null,null,"２．オレンジ枠に合計修得単位数を入力する。",null,250093000001,"物理学基礎A I"]
[null,null,"微分積分学AⅡ",2,null,null,null,null,null,null,null,null,null,null,null,null,null,null,null,null,null,null,null,null,null,null,null,null,null,null,null,null,null,null,null,null,null,null,null,null,null,"３．灰色枠に受講科目の合計GP（単位数×GP）を計算し、",null,250093000003,"微分積分学AⅡ"]
[null,null,"線形代数学Ⅱ",2,null,null,null,null,null,null,null,null,null,null,null,null,null,null,null,null,null,null,null,null,null,null,null,null,null,null,null,null,null,null,null,null,null,null,null,null,null,"    その値を入力する。",null,250093000020,"線形代数学Ⅱ","「Ⅰ」が異なるためヒットせず","有機化学Ⅰ（化） 250093000020"]
[null,null,"物理学基礎AⅡ",2,null,null,null,null,null,null,null,null,null,null,null,null,null,null,null,null,null,null,null,null,null,null,null,null,null,null,null,null,null,null,null,null,null,null,null,null,null,"　（評価とGPの関係：A=4,B=3,C=2,D=1,F=0,PはGPの該当",null,250093000004,"物理学基礎AⅡ"]
["合計",null,null,null,null,{"$f":"SUM(F7:F12)","v":0},null,{"$f":"SUM(H7:H12)","v":0},null,{"$f":"SUM(J7:J12)","v":0},null,{"$f":"SUM(L7:L12)","v":0},null,{"$f":"SUM(N7:N12)","v":0},null,{"$f":"SUM(P7:P12)","v":0},null,{"$f":"SUM(R7:R12)","v":0},null,{"$f":"SUM(T7:T12)","v":0},null,{"$f":"SUM(V7:V12)","v":0},null,{"$f":"SUM(X7:X12)","v":0},null,{"$f":"SUM(Z7:Z12)","v":0},null,{"$f":"SUM(AB7:AB12)","v":0},null,{"$f":"SUM(AD7:AD12)","v":0},null,{"$f":"SUM(AF7:AF12)","v":0},null,{"$f":"SUM(AH7:AH12)","v":0},null,{"$f":"SUM(AJ7:AJ12)","v":0},{"$f":"SUM(E13,G13,I13,K13,M13,O13,Q13,S13,U13,W13,Y13,AA13,AC13,AE13,AG13,AI13)","v":0},12,{"$f":"SUM(F13,H13,J13,L13,N13,P13,R13,T13,V13,X13,Z13,AB13,AD13,AF13,AH13,AJ13)","v":0},null,null,"　　外なので合計GP欄は空欄とする。）",null,250093000006,0]
[null,null,null,null,null,null,null,null,null,null,null,null,null,null,null,null,null,null,null,null,null,null,null,null,null,null,null,null,null,null,null,null,null,null,null,null,null,null,null,null,null,"４．修得単位数を要修得単位数と比較して単位取得状況"]
["専門科目","必\n修\n科\n目","フレッシュマンセミナー",2,null,null,null,null,null,null,null,null,null,null,null,null,null,null,null,null,null,null,null,null,null,null,null,null,null,null,null,null,null,null,null,null,null,null,null,null,null,"    を把握する。",null,250093000007,{"$f":"C15","v":"フレッシュマンセミナー"},"「Ⅰ」が異なるためヒットせず","応用数学Ⅰ（化） 250093000007"]
[null,null,"基礎化学",2,null,null,null,null,null,null,null,null,null,null,null,null,null,null,null,null,null,null,null,null,null,null,null,null,null,null,null,null,null,null,null,null,null,null,null,null,null,null,null,250093000005,"基礎化学"]
[null,null,"有機化学基礎",2,null,null,null,null,null,null,null,null,null,null,null,null,null,null,null,null,null,null,null,null,null,null,null,null,null,null,null,null,null,null,null,null,null,null,null,null,null,"※期をまたがって開講される科目は、成績の出された期に",null,250093000008,"有機化学基礎"]
[null,null,"物理化学基礎",2,null,null,null,null,null,null,null,null,null,null,null,null,null,null,null,null,null,null,null,null,null,null,null,null,null,null,null,null,null,null,null,null,null,null,null,null,null,"  記入する。例えば通年の場合、後期に記入する。",null,250072400001,"物理化学基礎","2件以上ヒット","化学情報分析実習 250072400001\n化学情報分析実習 250093000009"]
[null,null,"物理化学Ⅰ",2,null,null,null,null,null,null,null,null,null,null,null,null,null,null,null,null,null,null,null,null,null,null,null,null,null,null,null,null,null,null,null,null,null,null,null,null,null,"※本表最下部の表の入力方法について",null,251330000001,"物理化学Ⅰ"]
[null,null,"化学工学基礎",2,null,null,null,null,null,null,null,null,null,null,null,null,null,null,null,null,null,null,null,null,null,null,null,null,null,null,null,null,null,null,null,null,null,null,null,null,null,"　・P評価の単位数は当該期①の欄に、",null,250093000011,"化学工学基礎"]
[null,null,"有機化学Ｉ",2,null,null,null,null,null,null,null,null,null,null,null,null,null,null,null,null,null,null,null,null,null,null,null,null,null,null,null,null,null,null,null,null,null,null,null,null,null,"　・F評価の単位数は当該期②の欄に、"]
[null,null,"有機化学Ⅱ",2,null,null,null,null,null,null,null,null,null,null,null,null,null,null,null,null,null,null,null,null,null,null,null,null,null,null,null,null,null,null,null,null,null,null,null,null,null,"　・評価F科目の再履修での修得単位数は当該期③の欄に"]
[null,null,"物理化学Ⅱ",2,null,null,null,null,null,null,null,null,null,null,null,null,null,null,null,null,null,null,null,null,null,null,null,null,null,null,null,null,null,null,null,null,null,null,null,null,null,"　　入力する。なお、②には再履修の科目は含まない。"]
[null,null,"化学生命工学実験",3,null,null,null,null,null,null,null,null,null,null,null,null,null,null,null,null,null,null,null,null,null,null,null,null,null,null,null,null,null,null,null,null,null,null,null,null,null,"※評価Fの科目を再履修して単位を修得した場合の入力方"]
[null,null,"工学英語Ⅰ",2,null,null,null,null,null,null,null,null,null,null,null,null,null,null,null,null,null,null,null,null,null,null,null,null,null,null,null,null,null,null,null,null,null,null,null,null,null,"  法について"]
[null,null,"化学情報分析実習",3,null,null,null,null,null,null,null,null,null,null,null,null,null,null,null,null,null,null,null,null,null,null,null,null,null,null,null,null,null,null,null,null,null,null,null,null,null,"  上記１～３の手順で入力する。"]
[null,null,"化学生命工学セミナーⅠ",2,null,null,null,null,null,null,null,null,null,null,null,null,null,null,null,null,null,null,null,null,null,null,null,null,null,null,null,null,null,null,null,null,null,null,null,null,null,"※既修得単位（D以上）の科目を再履修して単位を"]
[null,null,"工学英語Ⅱ",2,null,null,null,null,null,null,null,null,null,null,null,null,null,null,null,null,null,null,null,null,null,null,null,null,null,null,null,null,null,null,null,null,null,null,null,null,null,"　修得した場合の入力方法について"]
[null,null,"化学生命工学セミナーⅡ",2,null,null,null,null,null,null,null,null,null,null,null,null,null,null,null,null,null,null,null,null,null,null,null,null,null,null,null,null,null,null,null,null,null,null,null,null,null,"　今期の分を上記1～3の手順で入力した後、"]
[null,null,"工学倫理",2,null,null,null,null,null,null,null,null,null,null,null,null,null,null,null,null,null,null,null,null,null,null,null,null,null,null,null,null,null,null,null,null,null,null,null,null,null,"  過去の評価（黄色枠）と合計GP（灰色枠）"]
[null,null,"化学生命工学特別研究Ⅰ",2,null,null,null,null,null,null,null,null,null,null,null,null,null,null,null,null,null,null,null,null,null,null,null,null,null,null,null,null,null,null,null,null,null,null,null,null,null,"　を削除し、過去のオレンジ枠の合計修得単位数"]
[null,null,"化学生命工学特別研究Ⅱ",2,null,null,null,null,null,null,null,null,null,null,null,null,null,null,null,null,null,null,null,null,null,null,null,null,null,null,null,null,null,null,null,null,null,null,null,null,null,"　から今期再履修で修得した単位数を引いた値を"]
[null,null,"卒　　　業　　　論　　　文",6,null,null,null,null,null,null,null,null,null,null,null,null,null,null,null,null,null,null,null,null,null,null,null,null,null,null,null,null,null,null,null,null,null,null,null,null,null,"　過去のオレンジ枠の合計修得単位数に再入力する。"]
["合計",null,null,null,null,{"$f":"SUM(F15:F33)","v":0},null,{"$f":"SUM(H15:H33)","v":0},null,{"$f":"SUM(J15:J33)","v":0},null,{"$f":"SUM(L15:L33)","v":0},null,{"$f":"SUM(N15:N33)","v":0},null,{"$f":"SUM(P15:P33)","v":0},null,{"$f":"SUM(R15:R33)","v":0},null,{"$f":"SUM(T15:T33)","v":0},null,{"$f":"SUM(V15:V33)","v":0},null,{"$f":"SUM(X15:X33)","v":0},null,{"$f":"SUM(Z15:Z33)","v":0},null,{"$f":"SUM(AB15:AB33)","v":0},null,{"$f":"SUM(AD15:AD33)","v":0},null,{"$f":"SUM(AF15:AF33)","v":0},null,{"$f":"SUM(AH15:AH33)","v":0},null,{"$f":"SUM(AJ15:AJ33)","v":0},{"$f":"SUM(E34,G34,I34,K34,M34,O34,Q34,S34,U34,W34,Y34,AA34,AC34,AE34,AG34,AI34)","v":0},44,{"$f":"SUM(F34,H34,J34,L34,N34,P34,R34,T34,V34,X34,Z34,AB34,AD34,AF34,AH34,AJ34)","v":0}]
[null,null,null,null,null,null,null,null,null,null,null,null,null,null,null,null,null,null,null,null,null,null,null,null,null,null,null,null,null,null,null,null,null,null,null,null,null,null,null,null,null,"STEP２"]
["専門科目","選\n択\n科\n目\nＡ\n群\n","情報システム",2,null,null,null,null,null,null,null,null,null,null,null,null,null,null,null,null,null,null,null,null,null,null,null,null,null,null,null,null,null,null,null,null,null,null,null,null,null,"累積GPAの値を成績原簿と一致するかチェックする。","選\n択\n科\n目\nＡ\n群\n",250093000015,{"$f":"C36","v":"情報システム"}]
[null,null,"地球科学基礎",2,null,null,null,null,null,null,null,null,null,null,null,null,null,null,null,null,null,null,null,null,null,null,null,null,null,null,null,null,null,null,null,null,null,null,null,null,null,"区分ごとの単位修得状況の入力が終了した後に、シート",null,250299110001,"地球科学基礎"]
[null,null,"原子力・放射線と環境",2,null,null,null,null,null,null,null,null,null,null,null,null,null,null,null,null,null,null,null,null,null,null,null,null,null,null,null,null,null,null,null,null,null,null,null,null,null,"右下赤枠の「累積GPA」の値が、成績原簿に記載されて",null,250042099101,"原子力・放射線と環境"]
[null,null,"生産工学論",2,null,null,null,null,null,null,null,null,null,null,null,null,null,null,null,null,null,null,null,null,null,null,null,null,null,null,null,null,null,null,null,null,null,null,null,null,null,"いる累積GPAの値と一致しているかチェックし、一致",null,250299200001,"生産工学論"]
[null,null,"エレクトロニクス論",2,null,null,null,null,null,null,null,null,null,null,null,null,null,null,null,null,null,null,null,null,null,null,null,null,null,null,null,null,null,null,null,null,null,null,null,null,null,"していない場合はSTEP１に戻り、入力値に間違いが",null,250228100002,"エレクトロニクス論"]
[null,null,"科学技術論",2,null,null,null,null,null,null,null,null,null,null,null,null,null,null,null,null,null,null,null,null,null,null,null,null,null,null,null,null,null,null,null,null,null,null,null,null,null,"ないか見直し、正しく入力する。",null,250228100006,"科学技術論"]
[null,null,"環境工学論",2,null,null,null,null,null,null,null,null,null,null,null,null,null,null,null,null,null,null,null,null,null,null,null,null,null,null,null,null,null,null,null,null,null,null,null,null,null,null,null,250228100004,"環境工学論"]
[null,null,"材料科学論",2,null,null,null,null,null,null,null,null,null,null,null,null,null,null,null,null,null,null,null,null,null,null,null,null,null,null,null,null,null,null,null,null,null,null,null,null,null,"（補足説明）",null,250228100005,"材料科学論"]
[null,null,"エネルギー工学論",2,null,null,null,null,null,null,null,null,null,null,null,null,null,null,null,null,null,null,null,null,null,null,null,null,null,null,null,null,null,null,null,null,null,null,null,null,null,"※留年した場合は「期を増やす」欄で列を増やす。",null,250228100003,"エネルギー工学論"]
["合計",null,null,null,null,{"$f":"SUM(F36:F44)","v":0},null,{"$f":"SUM(H36:H44)","v":0},null,{"$f":"SUM(J36:J44)","v":0},null,{"$f":"SUM(L36:L44)","v":0},null,{"$f":"SUM(N36:N44)","v":0},null,{"$f":"SUM(P36:P44)","v":0},null,{"$f":"SUM(R36:R44)","v":0},null,{"$f":"SUM(T36:T44)","v":0},null,{"$f":"SUM(V36:V44)","v":0},null,{"$f":"SUM(X36:X44)","v":0},null,{"$f":"SUM(Z36:Z44)","v":0},null,{"$f":"SUM(AB36:AB44)","v":0},null,{"$f":"SUM(AD36:AD44)","v":0},null,{"$f":"SUM(AF36:AF44)","v":0},null,{"$f":"SUM(AH36:AH44)","v":0},null,{"$f":"SUM(AJ36:AJ44)","v":0},{"$f":"SUM(E45,G45,I45,K45,M45,O45,Q45,S45,U45,W45,Y45,AA45,AC45,AE45,AG45,AI45)","v":0},6,{"$f":"SUM(F45,H45,J45,L45,N45,P45,R45,T45,V45,X45,Z45,AB45,AD45,AF45,AH45,AJ45)","v":0},null,null,"※評価Pの科目については、GPおよびGPAの計算に含ま"]
[null,null,null,null,null,null,null,null,null,null,null,null,null,null,null,null,null,null,null,null,null,null,null,null,null,null,null,null,null,null,null,null,null,null,null,null,null,null,null,null,null,"　ない。しかしながら、進級・卒業要件の累積単位数"]
["専門科目","選\n択\n科\n目\nB\n群","生物学概論",2,null,null,null,null,null,null,null,null,null,null,null,null,null,null,null,null,null,null,null,null,null,null,null,null,null,null,null,null,null,null,null,null,null,null,null,null,null,"　には含まれることがあるので、標準履修課程表で確認","選\n択\n科\n目\nＢ\n群",251330000003,{"$f":"C47","v":"生物学概論"}]
[null,null,"生物化学Ⅰ",2,null,null,null,null,null,null,null,null,null,null,null,null,null,null,null,null,null,null,null,null,null,null,null,null,null,null,null,null,null,null,null,null,null,null,null,null,null,"　すること。（インターンシップ等）",null,250093000026,{"$f":"C48","v":"生物化学Ⅰ"}]
[null,null,"高分子化学",2,null,null,null,null,null,null,null,null,null,null,null,null,null,null,null,null,null,null,null,null,null,null,null,null,null,null,null,null,null,null,null,null,null,null,null,null,null,"※随意科目については、GPおよびGPAの計算に含まれない。"]
[null,null,"生体分子化学",2,null,null,null,null,null,null,null,null,null,null,null,null,null,null,null,null,null,null,null,null,null,null,null,null,null,null,null,null,null,null,null,null,null,null,null,null,null,"　また、進級・卒業要件にも含まれない。"]
[null,null,"無機化学",2]
[null,null,"生物化学Ⅱ",2,null,null,null,null,null,null,null,null,null,null,null,null,null,null,null,null,null,null,null,null,null,null,null,null,null,null,null,null,null,null,null,null,null,null,null,null,null,null,null,250093000021,{"$f":"C52","v":"生物化学Ⅱ"}]
[null,null,"化学計測",2,null,null,null,null,null,null,null,null,null,null,null,null,null,null,null,null,null,null,null,null,null,null,null,null,null,null,null,null,null,null,null,null,null,null,null,null,null,null,null,250093000022,"化学計測"]
[null,null,"化学生命プログラミング",2,null,null,null,null,null,null,null,null,null,null,null,null,null,null,null,null,null,null,null,null,null,null,null,null,null,null,null,null,null,null,null,null,null,null,null,null,null,null,null,250093000024,"化学生命プログラミング"]
[null,null,"有機化学Ⅲ",2,null,null,null,null,null,null,null,null,null,null,null,null,null,null,null,null,null,null,null,null,null,null,null,null,null,null,null,null,null,null,null,null,null,null,null,null,null,null,null,250093000027,"有機化学Ⅲ"]
[null,null,"分析化学",2]
[null,null,"量子化学",2,null,null,null,null,null,null,null,null,null,null,null,null,null,null,null,null,null,null,null,null,null,null,null,null,null,null,null,null,null,null,null,null,null,null,null,null,null,null,null,250093000028,"量子化学"]
["合計",null,null,null,null,{"$f":"SUM(F47:F57)","v":0},null,{"$f":"SUM(H47:H57)","v":0},null,{"$f":"SUM(J47:J57)","v":0},null,{"$f":"SUM(L47:L57)","v":0},null,{"$f":"SUM(N47:N57)","v":0},null,{"$f":"SUM(P47:P57)","v":0},null,{"$f":"SUM(R47:R57)","v":0},null,{"$f":"SUM(T47:T57)","v":0},null,{"$f":"SUM(V47:V57)","v":0},null,{"$f":"SUM(X47:X57)","v":0},null,{"$f":"SUM(Z47:Z57)","v":0},null,{"$f":"SUM(AB47:AB57)","v":0},null,{"$f":"SUM(AD47:AD57)","v":0},null,{"$f":"SUM(AF47:AF57)","v":0},null,{"$f":"SUM(AH47:AH57)","v":0},null,{"$f":"SUM(AJ47:AJ57)","v":0},{"$f":"SUM(E58,G58,I58,K58,M58,O58,Q58,S58,U58,W58,Y58,AA58,AC58,AE58,AG58,AI58)","v":0},16,{"$f":"SUM(F58,H58,J58,L58,N58,P58,R58,T58,V58,X58,Z58,AB58,AD58,AF58,AH58,AJ58)","v":0}]
[]
["専門科目","選\n択\n科\n目\nＣ\n群","化学生命工学キャリアデザイン",2,null,null,null,null,null,null,null,null,null,null,null,null,null,null,null,null,null,null,null,null,null,null,null,null,null,null,null,null,null,null,null,null,null,null,null,null,null,null,"選\n択\n科\n目\nＣ\n群",250093000031,{"$f":"C60","v":"化学生命工学キャリアデザイン"}]
[null,null,"界面科学",2,null,null,null,null,null,null,null,null,null,null,null,null,null,null,null,null,null,null,null,null,null,null,null,null,null,null,null,null,null,null,null,null,null,null,null,null,null,null,null,259752424101,{"$f":"C61","v":"界面科学"}]
[null,null,"生体分子計測学",2]
[null,null,"分子生物学",2]
[null,null,"医工学概論",2]
[null,null,"反応速度論",2]
[null,null,"機能材料化学",2]
[null,null,"環境化学工学",2,null,null,null,null,null,null,null,null,null,null,null,null,null,null,null,null,null,null,null,null,null,null,null,null,null,null,null,null,null,null,null,null,null,null,null,null,null,null,null,250093000025,{"$f":"C67","v":"環境化学工学"}]
[null,null,"移動現象基礎",2,null,null,null,null,null,null,null,null,null,null,null,null,null,null,null,null,null,null,null,null,null,null,null,null,null,null,null,null,null,null,null,null,null,null,null,null,null,null,null,250227000130,{"$f":"C68","v":"移動現象基礎"}]
[null,null,"微生物学",2,null,null,null,null,null,null,null,null,null,null,null,null,null,null,null,null,null,null,null,null,null,null,null,null,null,null,null,null,null,null,null,null,null,null,null,null,null,null,null,250093000039,{"$f":"C69","v":"微生物学"}]
[null,null,"化学生命工学研究基礎",2,null,null,null,null,null,null,null,null,null,null,null,null,null,null,null,null,null,null,null,null,null,null,null,null,null,null,null,null,null,null,null,null,null,null,null,null,null,null,null,250224000120,{"$f":"C70","v":"化学生命工学研究基礎"}]
[null,null,"学外実習",1,null,null,null,null,null,null,null,null,null,null,null,null,null,null,null,null,null,null,null,null,null,null,null,null,null,null,null,null,null,null,null,null,null,null,null,null,null,null,null,250224011001,{"$f":"C71","v":"学外実習"}]
["合計",null,null,null,null,{"$f":"SUM(F60:F71)","v":0},null,{"$f":"SUM(H60:H71)","v":0},null,{"$f":"SUM(J60:J71)","v":0},null,{"$f":"SUM(L60:L71)","v":0},null,{"$f":"SUM(N60:N71)","v":0},null,{"$f":"SUM(P60:P71)","v":0},null,{"$f":"SUM(R60:R71)","v":0},null,{"$f":"SUM(T60:T71)","v":0},null,{"$f":"SUM(V60:V71)","v":0},null,{"$f":"SUM(X60:X71)","v":0},null,{"$f":"SUM(Z60:Z71)","v":0},null,{"$f":"SUM(AB60:AB71)","v":0},null,{"$f":"SUM(AD60:AD71)","v":0},null,{"$f":"SUM(AF60:AF71)","v":0},null,{"$f":"SUM(AH60:AH71)","v":0},null,{"$f":"SUM(AJ60:AJ71)","v":0},{"$f":"SUM(E72,G72,I72,K72,M72,O72,Q72,S72,U72,W72,Y72,AA72,AC72,AE72,AG72,AI72)","v":0},15,{"$f":"SUM(F72,H72,J72,L72,N72,P72,R72,T72,V72,X72,Z72,AB72,AD72,AF72,AH72,AJ72)","v":0}]
[]
["専門教育科目合計（単位数とGP）",null,null,null,{"$f":"SUM(E13,E34,E45,E58,E72)","v":0},0,0,0,0,0,0,0,0,0,0,0,0,0,0,0,0,0,0,0,0,0,0,0,0,0,0,0,0,0,0,0,{"$f":"SUM(E74,G74,I74,K74,M74,O74,Q74,S74,U74,W74,Y74,AA74,AC74,AE74,AG74,AI74)","v":0},93,{"$f":"SUM(F74,H74,J74,L74,N74,P74,R74,T74,V74,X74,Z74,AB74,AD74,AF74,AH74,AJ74)","v":0}]
["(共通＋専門)教育科目合計（単位数とGP）",null,null,null,{"$f":"'単位修得状況確認表（共通教育科目，外国人留学生）'!H25+E74","v":0},{"$f":"'単位修得状況確認表（共通教育科目，外国人留学生）'!I25+F74","v":0},{"$f":"'単位修得状況確認表（共通教育科目，外国人留学生）'!J25+G74","v":0},{"$f":"'単位修得状況確認表（共通教育科目，外国人留学生）'!K25+H74","v":0},{"$f":"'単位修得状況確認表（共通教育科目，外国人留学生）'!L25+I74","v":0},{"$f":"'単位修得状況確認表（共通教育科目，外国人留学生）'!M25+J74","v":0},{"$f":"'単位修得状況確認表（共通教育科目，外国人留学生）'!N25+K74","v":0},{"$f":"'単位修得状況確認表（共通教育科目，外国人留学生）'!O25+L74","v":0},{"$f":"'単位修得状況確認表（共通教育科目，外国人留学生）'!P25+M74","v":0},{"$f":"'単位修得状況確認表（共通教育科目，外国人留学生）'!Q25+N74","v":0},{"$f":"'単位修得状況確認表（共通教育科目，外国人留学生）'!R25+O74","v":0},{"$f":"'単位修得状況確認表（共通教育科目，外国人留学生）'!S25+P74","v":0},{"$f":"'単位修得状況確認表（共通教育科目，外国人留学生）'!T25+Q74","v":0},{"$f":"'単位修得状況確認表（共通教育科目，外国人留学生）'!U25+R74","v":0},{"$f":"'単位修得状況確認表（共通教育科目，外国人留学生）'!V25+S74","v":0},{"$f":"'単位修得状況確認表（共通教育科目，外国人留学生）'!W25+T74","v":0},{"$f":"'単位修得状況確認表（共通教育科目，外国人留学生）'!X25+U74","v":0},{"$f":"'単位修得状況確認表（共通教育科目，外国人留学生）'!Y25+V74","v":0},{"$f":"'単位修得状況確認表（共通教育科目，外国人留学生）'!Z25+W74","v":0},{"$f":"'単位修得状況確認表（共通教育科目，外国人留学生）'!AA25+X74","v":0},{"$f":"'単位修得状況確認表（共通教育科目，外国人留学生）'!AB25+Y74","v":0},{"$f":"'単位修得状況確認表（共通教育科目，外国人留学生）'!AC25+Z74","v":0},{"$f":"'単位修得状況確認表（共通教育科目，外国人留学生）'!AD25+AA74","v":0},{"$f":"'単位修得状況確認表（共通教育科目，外国人留学生）'!AE25+AB74","v":0},{"$f":"'単位修得状況確認表（共通教育科目，外国人留学生）'!AF25+AC74","v":0},{"$f":"'単位修得状況確認表（共通教育科目，外国人留学生）'!AG25+AD74","v":0},{"$f":"'単位修得状況確認表（共通教育科目，外国人留学生）'!AH25+AE74","v":0},{"$f":"'単位修得状況確認表（共通教育科目，外国人留学生）'!AI25+AF74","v":0},{"$f":"'単位修得状況確認表（共通教育科目，外国人留学生）'!AJ25+AG74","v":0},{"$f":"'単位修得状況確認表（共通教育科目，外国人留学生）'!AK25+AH74","v":0},{"$f":"'単位修得状況確認表（共通教育科目，外国人留学生）'!AL25+AI74","v":0},{"$f":"'単位修得状況確認表（共通教育科目，外国人留学生）'!AM25+AJ74","v":0},{"$f":"SUM(E75,G75,I75,K75,M75,O75,Q75,S75,U75,W75,Y75,AA75,AC75,AE75,AG75,AI75)","v":0},126,{"$f":"SUM(F75,H75,J75,L75,N75,P75,R75,T75,V75,X75,Z75,AB75,AD75,AF75,AH75,AJ75)","v":0}]
["※","「期を増やす」欄により学年を４年間増やすことが可。",null,null,null,null,null,null,null,null,null,null,null,null,null,null,null,null,null,null,null,null,null,null,null,null,null,null,null,null,null,null,null,null,null,null,"累積GPA",null,{"$f":"IF(AK75-AK78>0,AM75/(AK75-AK78-'単位修得状況確認表（共通教育科目，外国人留学生）'!AN28+AK79+'単位修得状況確認表（共通教育科目，外国人留学生）'!AN29-AK80-'単位修得状況確認表（共通教育科目，外国人留学生）'!AN30),\"\")","v":""}]
[]
["①【専門教育科目】評価Pの単位数",null,null,null,null,null,null,null,null,null,null,null,null,null,null,null,null,null,null,null,null,null,null,null,null,null,null,null,null,null,null,null,null,null,null,null,{"$f":"SUM(E78:AJ78)","v":0}]
["②【専門教育科目】不合格（評価F）の単位数",null,null,null,null,null,null,null,null,null,null,null,null,null,null,null,null,null,null,null,null,null,null,null,null,null,null,null,null,null,null,null,null,null,null,null,{"$f":"SUM(E79:AJ79)","v":0}]
["③【専門教育科目】評価F科目の再履修での修得単位数",null,null,null,null,null,null,null,null,null,null,null,null,null,null,null,null,null,null,null,null,null,null,null,null,null,null,null,null,null,null,null,null,null,null,null,{"$f":"SUM(E80:AJ80)","v":0}]

{"sheet":"累積グラフ","index":5,"n_rows":269,"n_cols":8,"rows_kept":269,"cut":false,"hidden":false,"merged":[[81,2,81,3],[3,6,3,7],[3,2,3,3],[3,4,3,5],[42,2,42,3],[42,4,42,5]]}
[]
[null,"共通教育科目（必修科目）"]
[]
[null,null,"初年次教育科目",null,"ｸﾞﾛｰﾊﾞﾙ教育科目",null,"日本語・日本事情科目"]
[null,null,"取得単位数","累積取得単位数","取得単位数","累積取得単位数","取得単位数","累積取得単位数"]
[null,"1期終了時",{"$f":"SUM('単位修得状況確認表（共通教育科目，外国人留学生）'!H$7:H$12)","v":0},{"$f":"SUM(C$6:C6)","v":0},{"$f":"SUM('単位修得状況確認表（共通教育科目，外国人留学生）'!H$13:H$14)","v":0},{"$f":"SUM(E$6:E6)","v":0},{"$f":"SUM('単位修得状況確認表（共通教育科目，外国人留学生）'!H$15:H$16)","v":0},{"$f":"SUM(G$6:G6)","v":0}]
[null,"2期終了時",{"$f":"SUM('単位修得状況確認表（共通教育科目，外国人留学生）'!J$7:J$12)","v":0},{"$f":"SUM(C$6:C7)","v":0},{"$f":"SUM('単位修得状況確認表（共通教育科目，外国人留学生）'!J$13:J$14)","v":0},{"$f":"SUM(E$6:E7)","v":0},{"$f":"SUM('単位修得状況確認表（共通教育科目，外国人留学生）'!J$15:J$16)","v":0},{"$f":"SUM(G$6:G7)","v":0}]
[null,"3期終了時",{"$f":"SUM('単位修得状況確認表（共通教育科目，外国人留学生）'!L$7:L$12)","v":0},{"$f":"SUM(C$6:C8)","v":0},{"$f":"SUM('単位修得状況確認表（共通教育科目，外国人留学生）'!L$13:L$14)","v":0},{"$f":"SUM(E$6:E8)","v":0},{"$f":"SUM('単位修得状況確認表（共通教育科目，外国人留学生）'!L$15:L$16)","v":0},{"$f":"SUM(G$6:G8)","v":0}]
[null,"4期終了時",{"$f":"SUM('単位修得状況確認表（共通教育科目，外国人留学生）'!N$7:N$12)","v":0},{"$f":"SUM(C$6:C9)","v":0},{"$f":"SUM('単位修得状況確認表（共通教育科目，外国人留学生）'!N$13:N$14)","v":0},{"$f":"SUM(E$6:E9)","v":0},{"$f":"SUM('単位修得状況確認表（共通教育科目，外国人留学生）'!N$15:N$16)","v":0},{"$f":"SUM(G$6:G9)","v":0}]
[null,"5期終了時",{"$f":"SUM('単位修得状況確認表（共通教育科目，外国人留学生）'!P$7:P$12)","v":0},{"$f":"SUM(C$6:C10)","v":0},{"$f":"SUM('単位修得状況確認表（共通教育科目，外国人留学生）'!P$13:P$14)","v":0},{"$f":"SUM(E$6:E10)","v":0},{"$f":"SUM('単位修得状況確認表（共通教育科目，外国人留学生）'!P$15:P$16)","v":0},{"$f":"SUM(G$6:G10)","v":0}]
[null,"6期終了時",{"$f":"SUM('単位修得状況確認表（共通教育科目，外国人留学生）'!R$7:R$12)","v":0},{"$f":"SUM(C$6:C11)","v":0},{"$f":"SUM('単位修得状況確認表（共通教育科目，外国人留学生）'!R$13:R$14)","v":0},{"$f":"SUM(E$6:E11)","v":0},{"$f":"SUM('単位修得状況確認表（共通教育科目，外国人留学生）'!R$15:R$16)","v":0},{"$f":"SUM(G$6:G11)","v":0}]
[null,"7期終了時",{"$f":"SUM('単位修得状況確認表（共通教育科目，外国人留学生）'!T$7:T$12)","v":0},{"$f":"SUM(C$6:C12)","v":0},{"$f":"SUM('単位修得状況確認表（共通教育科目，外国人留学生）'!T$13:T$14)","v":0},{"$f":"SUM(E$6:E12)","v":0},{"$f":"SUM('単位修得状況確認表（共通教育科目，外国人留学生）'!T$15:T$16)","v":0},{"$f":"SUM(G$6:G12)","v":0}]
[null,"8期終了時",{"$f":"SUM('単位修得状況確認表（共通教育科目，外国人留学生）'!V$7:V$12)","v":0},{"$f":"SUM(C$6:C13)","v":0},{"$f":"SUM('単位修得状況確認表（共通教育科目，外国人留学生）'!V$13:V$14)","v":0},{"$f":"SUM(E$6:E13)","v":0},{"$f":"SUM('単位修得状況確認表（共通教育科目，外国人留学生）'!V$15:V$16)","v":0},{"$f":"SUM(G$6:G13)","v":0}]
[null,"9期終了時",{"$f":"SUM('単位修得状況確認表（共通教育科目，外国人留学生）'!X$7:X$12)","v":0},{"$f":"IF(SUM($C227:$C$234)=0,\"\",SUM(C$6:C14))","v":""},{"$f":"SUM('単位修得状況確認表（共通教育科目，外国人留学生）'!X$13:X$14)","v":0},{"$f":"IF(SUM($C227:$C$234)=0,\"\",SUM(E$6:E14))","v":""},{"$f":"SUM('単位修得状況確認表（共通教育科目，外国人留学生）'!X$15:X$16)","v":0},{"$f":"IF(SUM($C227:$C$234)=0,\"\",SUM(G$6:G14))","v":""}]
[null,"10期終了時",{"$f":"SUM('単位修得状況確認表（共通教育科目，外国人留学生）'!Z$7:Z$12)","v":0},{"$f":"IF(SUM($C228:$C$234)=0,\"\",SUM(C$6:C15))","v":""},{"$f":"SUM('単位修得状況確認表（共通教育科目，外国人留学生）'!Z$13:Z$14)","v":0},{"$f":"IF(SUM($C228:$C$234)=0,\"\",SUM(E$6:E15))","v":""},{"$f":"SUM('単位修得状況確認表（共通教育科目，外国人留学生）'!Z$15:Z$16)","v":0},{"$f":"IF(SUM($C228:$C$234)=0,\"\",SUM(G$6:G15))","v":""}]
[null,"11期終了時",{"$f":"SUM('単位修得状況確認表（共通教育科目，外国人留学生）'!AB$7:AB$12)","v":0},{"$f":"IF(SUM($C229:$C$234)=0,\"\",SUM(C$6:C16))","v":""},{"$f":"SUM('単位修得状況確認表（共通教育科目，外国人留学生）'!AB$13:AB$14)","v":0},{"$f":"IF(SUM($C229:$C$234)=0,\"\",SUM(E$6:E16))","v":""},{"$f":"SUM('単位修得状況確認表（共通教育科目，外国人留学生）'!AB$15:AB$16)","v":0},{"$f":"IF(SUM($C229:$C$234)=0,\"\",SUM(G$6:G16))","v":""}]
[null,"12期終了時",{"$f":"SUM('単位修得状況確認表（共通教育科目，外国人留学生）'!AD$7:AD$12)","v":0},{"$f":"IF(SUM($C230:$C$234)=0,\"\",SUM(C$6:C17))","v":""},{"$f":"SUM('単位修得状況確認表（共通教育科目，外国人留学生）'!AD$13:AD$14)","v":0},{"$f":"IF(SUM($C230:$C$234)=0,\"\",SUM(E$6:E17))","v":""},{"$f":"SUM('単位修得状況確認表（共通教育科目，外国人留学生）'!AD$15:AD$16)","v":0},{"$f":"IF(SUM($C230:$C$234)=0,\"\",SUM(G$6:G17))","v":""}]
[null,"13期終了時",{"$f":"SUM('単位修得状況確認表（共通教育科目，外国人留学生）'!AF$7:AF$12)","v":0},{"$f":"IF(SUM($C231:$C$234)=0,\"\",SUM(C$6:C18))","v":""},{"$f":"SUM('単位修得状況確認表（共通教育科目，外国人留学生）'!AF$13:AF$14)","v":0},{"$f":"IF(SUM($C231:$C$234)=0,\"\",SUM(E$6:E18))","v":""},{"$f":"SUM('単位修得状況確認表（共通教育科目，外国人留学生）'!AF$15:AF$16)","v":0},{"$f":"IF(SUM($C231:$C$234)=0,\"\",SUM(G$6:G18))","v":""}]
[null,"14期終了時",{"$f":"SUM('単位修得状況確認表（共通教育科目，外国人留学生）'!AH$7:AH$12)","v":0},{"$f":"IF(SUM($C232:$C$234)=0,\"\",SUM(C$6:C19))","v":""},{"$f":"SUM('単位修得状況確認表（共通教育科目，外国人留学生）'!AH$13:AH$14)","v":0},{"$f":"IF(SUM($C232:$C$234)=0,\"\",SUM(E$6:E19))","v":""},{"$f":"SUM('単位修得状況確認表（共通教育科目，外国人留学生）'!AH$15:AH$16)","v":0},{"$f":"IF(SUM($C232:$C$234)=0,\"\",SUM(G$6:G19))","v":""}]
[null,"15期終了時",{"$f":"SUM('単位修得状況確認表（共通教育科目，外国人留学生）'!AJ$7:AJ$12)","v":0},{"$f":"IF(SUM($C233:$C$234)=0,\"\",SUM(C$6:C20))","v":""},{"$f":"SUM('単位修得状況確認表（共通教育科目，外国人留学生）'!AJ$13:AJ$14)","v":0},{"$f":"IF(SUM($C233:$C$234)=0,\"\",SUM(E$6:E20))","v":""},{"$f":"SUM('単位修得状況確認表（共通教育科目，外国人留学生）'!AJ$15:AJ$16)","v":0},{"$f":"IF(SUM($C233:$C$234)=0,\"\",SUM(G$6:G20))","v":""}]
[null,"16期終了時",{"$f":"SUM('単位修得状況確認表（共通教育科目，外国人留学生）'!AL$7:AL$12)","v":0},{"$f":"IF(SUM($C234:$C$234)=0,\"\",SUM(C$6:C21))","v":""},{"$f":"SUM('単位修得状況確認表（共通教育科目，外国人留学生）'!AL$13:AL$14)","v":0},{"$f":"IF(SUM($C234:$C$234)=0,\"\",SUM(E$6:E21))","v":""},{"$f":"SUM('単位修得状況確認表（共通教育科目，外国人留学生）'!AL$15:AL$16)","v":0},{"$f":"IF(SUM($C234:$C$234)=0,\"\",SUM(G$6:G21))","v":""}]
[]
[]
[]
[]
[]
[]
[]
[]
[]
[]
[]
[]
[]
[]
[]
[]
[]
[]
[]
[null,"共通教育科目（選択必修科目）"]
[]
[null,null,"教養教育科目",null,"教養活用科目"]
[null,null,"取得単位数","累積取得単位数","取得単位数","累積取得単位数"]
[null,"1期終了時",{"$f":"SUM('単位修得状況確認表（共通教育科目，外国人留学生）'!H$18:H$21)","v":0},{"$f":"SUM(C$45:C45)","v":0},{"$f":"SUM('単位修得状況確認表（共通教育科目，外国人留学生）'!H$22:H$23)","v":0},{"$f":"SUM(E$45:E45)","v":0}]
[null,"2期終了時",{"$f":"SUM('単位修得状況確認表（共通教育科目，外国人留学生）'!J$18:J$21)","v":0},{"$f":"SUM(C$45:C46)","v":0},{"$f":"SUM('単位修得状況確認表（共通教育科目，外国人留学生）'!J$22:J$23)","v":0},{"$f":"SUM(E$45:E46)","v":0}]
[null,"3期終了時",{"$f":"SUM('単位修得状況確認表（共通教育科目，外国人留学生）'!L$18:L$21)","v":0},{"$f":"SUM(C$45:C47)","v":0},{"$f":"SUM('単位修得状況確認表（共通教育科目，外国人留学生）'!L$22:L$23)","v":0},{"$f":"SUM(E$45:E47)","v":0}]
[null,"4期終了時",{"$f":"SUM('単位修得状況確認表（共通教育科目，外国人留学生）'!N$18:N$21)","v":0},{"$f":"SUM(C$45:C48)","v":0},{"$f":"SUM('単位修得状況確認表（共通教育科目，外国人留学生）'!N$22:N$23)","v":0},{"$f":"SUM(E$45:E48)","v":0}]
[null,"5期終了時",{"$f":"SUM('単位修得状況確認表（共通教育科目，外国人留学生）'!P$18:P$21)","v":0},{"$f":"SUM(C$45:C49)","v":0},{"$f":"SUM('単位修得状況確認表（共通教育科目，外国人留学生）'!P$22:P$23)","v":0},{"$f":"SUM(E$45:E49)","v":0}]
[null,"6期終了時",{"$f":"SUM('単位修得状況確認表（共通教育科目，外国人留学生）'!R$18:R$21)","v":0},{"$f":"SUM(C$45:C50)","v":0},{"$f":"SUM('単位修得状況確認表（共通教育科目，外国人留学生）'!R$22:R$23)","v":0},{"$f":"SUM(E$45:E50)","v":0}]
[null,"7期終了時",{"$f":"SUM('単位修得状況確認表（共通教育科目，外国人留学生）'!T$18:T$21)","v":0},{"$f":"SUM(C$45:C51)","v":0},{"$f":"SUM('単位修得状況確認表（共通教育科目，外国人留学生）'!T$22:T$23)","v":0},{"$f":"SUM(E$45:E51)","v":0}]
[null,"8期終了時",{"$f":"SUM('単位修得状況確認表（共通教育科目，外国人留学生）'!V$18:V$21)","v":0},{"$f":"SUM(C$45:C52)","v":0},{"$f":"SUM('単位修得状況確認表（共通教育科目，外国人留学生）'!V$22:V$23)","v":0},{"$f":"SUM(E$45:E52)","v":0}]
[null,"9期終了時",{"$f":"SUM('単位修得状況確認表（共通教育科目，外国人留学生）'!X$18:X$21)","v":0},{"$f":"IF(SUM($C227:$C$234)=0,\"\",SUM(C$45:C53))","v":""},{"$f":"SUM('単位修得状況確認表（共通教育科目，外国人留学生）'!X$22:X$23)","v":0},{"$f":"IF(SUM($C227:$C$234)=0,\"\",SUM(E$45:E53))","v":""}]
[null,"10期終了時",{"$f":"SUM('単位修得状況確認表（共通教育科目，外国人留学生）'!Z$18:Z$21)","v":0},{"$f":"IF(SUM($C228:$C$234)=0,\"\",SUM(C$45:C54))","v":""},{"$f":"SUM('単位修得状況確認表（共通教育科目，外国人留学生）'!Z$22:Z$23)","v":0},{"$f":"IF(SUM($C228:$C$234)=0,\"\",SUM(E$45:E54))","v":""}]
[null,"11期終了時",{"$f":"SUM('単位修得状況確認表（共通教育科目，外国人留学生）'!AB$18:AB$21)","v":0},{"$f":"IF(SUM($C229:$C$234)=0,\"\",SUM(C$45:C55))","v":""},{"$f":"SUM('単位修得状況確認表（共通教育科目，外国人留学生）'!AB$22:AB$23)","v":0},{"$f":"IF(SUM($C229:$C$234)=0,\"\",SUM(E$45:E55))","v":""}]
[null,"12期終了時",{"$f":"SUM('単位修得状況確認表（共通教育科目，外国人留学生）'!AD$18:AD$21)","v":0},{"$f":"IF(SUM($C230:$C$234)=0,\"\",SUM(C$45:C56))","v":""},{"$f":"SUM('単位修得状況確認表（共通教育科目，外国人留学生）'!AD$22:AD$23)","v":0},{"$f":"IF(SUM($C230:$C$234)=0,\"\",SUM(E$45:E56))","v":""}]
[null,"13期終了時",{"$f":"SUM('単位修得状況確認表（共通教育科目，外国人留学生）'!AF$18:AF$21)","v":0},{"$f":"IF(SUM($C231:$C$234)=0,\"\",SUM(C$45:C57))","v":""},{"$f":"SUM('単位修得状況確認表（共通教育科目，外国人留学生）'!AF$22:AF$23)","v":0},{"$f":"IF(SUM($C231:$C$234)=0,\"\",SUM(E$45:E57))","v":""}]
[null,"14期終了時",{"$f":"SUM('単位修得状況確認表（共通教育科目，外国人留学生）'!AH$18:AH$21)","v":0},{"$f":"IF(SUM($C232:$C$234)=0,\"\",SUM(C$45:C58))","v":""},{"$f":"SUM('単位修得状況確認表（共通教育科目，外国人留学生）'!AH$22:AH$23)","v":0},{"$f":"IF(SUM($C232:$C$234)=0,\"\",SUM(E$45:E58))","v":""}]
[null,"15期終了時",{"$f":"SUM('単位修得状況確認表（共通教育科目，外国人留学生）'!AJ$18:AJ$21)","v":0},{"$f":"IF(SUM($C233:$C$234)=0,\"\",SUM(C$45:C59))","v":""},{"$f":"SUM('単位修得状況確認表（共通教育科目，外国人留学生）'!AJ$22:AJ$23)","v":0},{"$f":"IF(SUM($C233:$C$234)=0,\"\",SUM(E$45:E59))","v":""}]
[null,"16期終了時",{"$f":"SUM('単位修得状況確認表（共通教育科目，外国人留学生）'!AL$18:AL$21)","v":0},{"$f":"IF(SUM($C234:$C$234)=0,\"\",SUM(C$45:C60))","v":""},{"$f":"SUM('単位修得状況確認表（共通教育科目，外国人留学生）'!AL$22:AL$23)","v":0},{"$f":"IF(SUM($C234:$C$234)=0,\"\",SUM(E$45:E60))","v":""}]
[]
[]
[]
[]
[]
[]
[]
[]
[]
[]
[]
[]
[]
[]
[]
[]
[]
[]
[]
[null,"専門教育科目（基礎教育科目）"]
[]
[null,null,"必修科目"]
[null,null,"取得単位数","累積取得単位数"]
[null,"1期終了時",{"$f":"'単位修得状況確認表（専門教育科目）'!E$13","v":0},{"$f":"SUM(C$84:C84)","v":0}]
[null,"2期終了時",{"$f":"'単位修得状況確認表（専門教育科目）'!G$13","v":0},{"$f":"SUM(C$84:C85)","v":0}]
[null,"3期終了時",{"$f":"'単位修得状況確認表（専門教育科目）'!I$13","v":0},{"$f":"SUM(C$84:C86)","v":0}]
[null,"4期終了時",{"$f":"'単位修得状況確認表（専門教育科目）'!K$13","v":0},{"$f":"SUM(C$84:C87)","v":0}]
[null,"5期終了時",{"$f":"'単位修得状況確認表（専門教育科目）'!M$13","v":0},{"$f":"SUM(C$84:C88)","v":0}]
[null,"6期終了時",{"$f":"'単位修得状況確認表（専門教育科目）'!O$13","v":0},{"$f":"SUM(C$84:C89)","v":0}]
[null,"7期終了時",{"$f":"'単位修得状況確認表（専門教育科目）'!Q$13","v":0},{"$f":"SUM(C$84:C90)","v":0}]
[null,"8期終了時",{"$f":"'単位修得状況確認表（専門教育科目）'!S$13","v":0},{"$f":"SUM(C$84:C91)","v":0}]
[null,"9期終了時",{"$f":"'単位修得状況確認表（専門教育科目）'!U$13","v":0},{"$f":"IF(SUM($C227:$C$234)=0,\"\",SUM(C$84:C92))","v":""}]
[null,"10期終了時",{"$f":"'単位修得状況確認表（専門教育科目）'!W$13","v":0},{"$f":"IF(SUM($C228:$C$234)=0,\"\",SUM(C$84:C93))","v":""}]
[null,"11期終了時",{"$f":"'単位修得状況確認表（専門教育科目）'!Y$13","v":0},{"$f":"IF(SUM($C229:$C$234)=0,\"\",SUM(C$84:C94))","v":""}]
[null,"12期終了時",{"$f":"'単位修得状況確認表（専門教育科目）'!AA$13","v":0},{"$f":"IF(SUM($C230:$C$234)=0,\"\",SUM(C$84:C95))","v":""}]
[null,"13期終了時",{"$f":"'単位修得状況確認表（専門教育科目）'!AC$13","v":0},{"$f":"IF(SUM($C231:$C$234)=0,\"\",SUM(C$84:C96))","v":""}]
[null,"14期終了時",{"$f":"'単位修得状況確認表（専門教育科目）'!AE$13","v":0},{"$f":"IF(SUM($C232:$C$234)=0,\"\",SUM(C$84:C97))","v":""}]
[null,"15期終了時",{"$f":"'単位修得状況確認表（専門教育科目）'!AG$13","v":0},{"$f":"IF(SUM($C233:$C$234)=0,\"\",SUM(C$84:C98))","v":""}]
[null,"16期終了時",{"$f":"'単位修得状況確認表（専門教育科目）'!AI$13","v":0},{"$f":"IF(SUM($C234:$C$234)=0,\"\",SUM(C$84:C99))","v":""}]
[]
[]
[]
[]
[]
[]
[]
[null,"専門教育科目（必修科目）"]
[]
[null,null,"取得単位数","累積取得単位数"]
[null,"1期終了時",{"$f":"'単位修得状況確認表（専門教育科目）'!E$34","v":0},{"$f":"SUM(C$110:C110)","v":0}]
[null,"2期終了時",{"$f":"'単位修得状況確認表（専門教育科目）'!G$34","v":0},{"$f":"SUM(C$110:C111)","v":0}]
[null,"3期終了時",{"$f":"'単位修得状況確認表（専門教育科目）'!I$34","v":0},{"$f":"SUM(C$110:C112)","v":0}]
[null,"4期終了時",{"$f":"'単位修得状況確認表（専門教育科目）'!K$34","v":0},{"$f":"SUM(C$110:C113)","v":0}]
[null,"5期終了時",{"$f":"'単位修得状況確認表（専門教育科目）'!M$34","v":0},{"$f":"SUM(C$110:C114)","v":0}]
[null,"6期終了時",{"$f":"'単位修得状況確認表（専門教育科目）'!O$34","v":0},{"$f":"SUM(C$110:C115)","v":0}]
[null,"7期終了時",{"$f":"'単位修得状況確認表（専門教育科目）'!Q$34","v":0},{"$f":"SUM(C$110:C116)","v":0}]
[null,"8期終了時",{"$f":"'単位修得状況確認表（専門教育科目）'!S$34","v":0},{"$f":"SUM(C$110:C117)","v":0}]
[null,"9期終了時",{"$f":"'単位修得状況確認表（専門教育科目）'!U$34","v":0},{"$f":"IF(SUM($C227:$C$234)=0,\"\",SUM(C$110:C118))","v":""}]
[null,"10期終了時",{"$f":"'単位修得状況確認表（専門教育科目）'!W$34","v":0},{"$f":"IF(SUM($C228:$C$234)=0,\"\",SUM(C$110:C119))","v":""}]
[null,"11期終了時",{"$f":"'単位修得状況確認表（専門教育科目）'!Y$34","v":0},{"$f":"IF(SUM($C229:$C$234)=0,\"\",SUM(C$110:C120))","v":""}]
[null,"12期終了時",{"$f":"'単位修得状況確認表（専門教育科目）'!AA$34","v":0},{"$f":"IF(SUM($C230:$C$234)=0,\"\",SUM(C$110:C121))","v":""}]
[null,"13期終了時",{"$f":"'単位修得状況確認表（専門教育科目）'!AC$34","v":0},{"$f":"IF(SUM($C231:$C$234)=0,\"\",SUM(C$110:C122))","v":""}]
[null,"14期終了時",{"$f":"'単位修得状況確認表（専門教育科目）'!AE$34","v":0},{"$f":"IF(SUM($C232:$C$234)=0,\"\",SUM(C$110:C123))","v":""}]
[null,"15期終了時",{"$f":"'単位修得状況確認表（専門教育科目）'!AG$34","v":0},{"$f":"IF(SUM($C233:$C$234)=0,\"\",SUM(C$110:C124))","v":""}]
[null,"16期終了時",{"$f":"'単位修得状況確認表（専門教育科目）'!AI$34","v":0},{"$f":"IF(SUM($C234:$C$234)=0,\"\",SUM(C$110:C125))","v":""}]
[]
[]
[]
[]
[]
[]
[]
[]
[]
[]
[]
[]
[null,"専門教育科目（選択科目A群）"]
[]
[null,null,"取得単位数","累積取得単位数"]
[null,"1期終了時",{"$f":"'単位修得状況確認表（専門教育科目）'!E$45","v":0},{"$f":"SUM(C$141:C141)","v":0}]
[null,"2期終了時",{"$f":"'単位修得状況確認表（専門教育科目）'!G$45","v":0},{"$f":"SUM(C$141:C142)","v":0}]
[null,"3期終了時",{"$f":"'単位修得状況確認表（専門教育科目）'!I$45","v":0},{"$f":"SUM(C$141:C143)","v":0}]
[null,"4期終了時",{"$f":"'単位修得状況確認表（専門教育科目）'!K$45","v":0},{"$f":"SUM(C$141:C144)","v":0}]
[null,"5期終了時",{"$f":"'単位修得状況確認表（専門教育科目）'!M$45","v":0},{"$f":"SUM(C$141:C145)","v":0}]
[null,"6期終了時",{"$f":"'単位修得状況確認表（専門教育科目）'!O$45","v":0},{"$f":"SUM(C$141:C146)","v":0}]
[null,"7期終了時",{"$f":"'単位修得状況確認表（専門教育科目）'!Q$45","v":0},{"$f":"SUM(C$141:C147)","v":0}]
[null,"8期終了時",{"$f":"'単位修得状況確認表（専門教育科目）'!S$45","v":0},{"$f":"SUM(C$141:C148)","v":0}]
[null,"9期終了時",{"$f":"'単位修得状況確認表（専門教育科目）'!U$45","v":0},{"$f":"IF(SUM($C227:$C$234)=0,\"\",SUM(C$141:C149))","v":""}]
[null,"10期終了時",{"$f":"'単位修得状況確認表（専門教育科目）'!W$45","v":0},{"$f":"IF(SUM($C228:$C$234)=0,\"\",SUM(C$141:C150))","v":""}]
[null,"11期終了時",{"$f":"'単位修得状況確認表（専門教育科目）'!Y$45","v":0},{"$f":"IF(SUM($C229:$C$234)=0,\"\",SUM(C$141:C151))","v":""}]
[null,"12期終了時",{"$f":"'単位修得状況確認表（専門教育科目）'!AA$45","v":0},{"$f":"IF(SUM($C230:$C$234)=0,\"\",SUM(C$141:C152))","v":""}]
[null,"13期終了時",{"$f":"'単位修得状況確認表（専門教育科目）'!AC$45","v":0},{"$f":"IF(SUM($C231:$C$234)=0,\"\",SUM(C$141:C153))","v":""}]
[null,"14期終了時",{"$f":"'単位修得状況確認表（専門教育科目）'!AE$45","v":0},{"$f":"IF(SUM($C232:$C$234)=0,\"\",SUM(C$141:C154))","v":""}]
[null,"15期終了時",{"$f":"'単位修得状況確認表（専門教育科目）'!AG$45","v":0},{"$f":"IF(SUM($C233:$C$234)=0,\"\",SUM(C$141:C155))","v":""}]
[null,"16期終了時",{"$f":"'単位修得状況確認表（専門教育科目）'!AI$45","v":0},{"$f":"IF(SUM($C234:$C$234)=0,\"\",SUM(C$141:C156))","v":""}]
[]
[]
[]
[]
[]
[]
[]
[null,"専門教育科目（選択科目B群）"]
[]
[null,null,"取得単位数","累積取得単位数"]
[null,"1期終了時",{"$f":"'単位修得状況確認表（専門教育科目）'!E$58","v":0},{"$f":"SUM(C$167:C167)","v":0}]
[null,"2期終了時",{"$f":"'単位修得状況確認表（専門教育科目）'!G$58","v":0},{"$f":"SUM(C$167:C168)","v":0}]
[null,"3期終了時",{"$f":"'単位修得状況確認表（専門教育科目）'!I$58","v":0},{"$f":"SUM(C$167:C169)","v":0}]
[null,"4期終了時",{"$f":"'単位修得状況確認表（専門教育科目）'!K$58","v":0},{"$f":"SUM(C$167:C170)","v":0}]
[null,"5期終了時",{"$f":"'単位修得状況確認表（専門教育科目）'!M$58","v":0},{"$f":"SUM(C$167:C171)","v":0}]
[null,"6期終了時",{"$f":"'単位修得状況確認表（専門教育科目）'!O$58","v":0},{"$f":"SUM(C$167:C172)","v":0}]
[null,"7期終了時",{"$f":"'単位修得状況確認表（専門教育科目）'!Q$58","v":0},{"$f":"SUM(C$167:C173)","v":0}]
[null,"8期終了時",{"$f":"'単位修得状況確認表（専門教育科目）'!S$58","v":0},{"$f":"SUM(C$167:C174)","v":0}]
[null,"9期終了時",{"$f":"'単位修得状況確認表（専門教育科目）'!U$58","v":0},{"$f":"IF(SUM($C227:$C$234)=0,\"\",SUM(C$167:C175))","v":""}]
[null,"10期終了時",{"$f":"'単位修得状況確認表（専門教育科目）'!W$58","v":0},{"$f":"IF(SUM($C228:$C$234)=0,\"\",SUM(C$167:C176))","v":""}]
[null,"11期終了時",{"$f":"'単位修得状況確認表（専門教育科目）'!Y$58","v":0},{"$f":"IF(SUM($C229:$C$234)=0,\"\",SUM(C$167:C177))","v":""}]
[null,"12期終了時",{"$f":"'単位修得状況確認表（専門教育科目）'!AA$58","v":0},{"$f":"IF(SUM($C230:$C$234)=0,\"\",SUM(C$167:C178))","v":""}]
[null,"13期終了時",{"$f":"'単位修得状況確認表（専門教育科目）'!AC$58","v":0},{"$f":"IF(SUM($C231:$C$234)=0,\"\",SUM(C$167:C179))","v":""}]
[null,"14期終了時",{"$f":"'単位修得状況確認表（専門教育科目）'!AE$58","v":0},{"$f":"IF(SUM($C232:$C$234)=0,\"\",SUM(C$167:C180))","v":""}]
[null,"15期終了時",{"$f":"'単位修得状況確認表（専門教育科目）'!AG$58","v":0},{"$f":"IF(SUM($C233:$C$234)=0,\"\",SUM(C$167:C181))","v":""}]
[null,"16期終了時",{"$f":"'単位修得状況確認表（専門教育科目）'!AI$58","v":0},{"$f":"IF(SUM($C234:$C$234)=0,\"\",SUM(C$167:C182))","v":""}]
[]
[]
[]
[]
[]
[]
[]
[null,"専門教育科目（選択科目C群）"]
[]
[null,null,"取得単位数","累積取得単位数"]
[null,"1期終了時",{"$f":"'単位修得状況確認表（専門教育科目）'!E$72","v":0},{"$f":"SUM(C$193:C193)","v":0}]
[null,"2期終了時",{"$f":"'単位修得状況確認表（専門教育科目）'!G$72","v":0},{"$f":"SUM(C$193:C194)","v":0}]
[null,"3期終了時",{"$f":"'単位修得状況確認表（専門教育科目）'!I$72","v":0},{"$f":"SUM(C$193:C195)","v":0}]
[null,"4期終了時",{"$f":"'単位修得状況確認表（専門教育科目）'!K$72","v":0},{"$f":"SUM(C$193:C196)","v":0}]
[null,"5期終了時",{"$f":"'単位修得状況確認表（専門教育科目）'!M$72","v":0},{"$f":"SUM(C$193:C197)","v":0}]
[null,"6期終了時",{"$f":"'単位修得状況確認表（専門教育科目）'!O$72","v":0},{"$f":"SUM(C$193:C198)","v":0}]
[null,"7期終了時",{"$f":"'単位修得状況確認表（専門教育科目）'!Q$72","v":0},{"$f":"SUM(C$193:C199)","v":0}]
[null,"8期終了時",{"$f":"'単位修得状況確認表（専門教育科目）'!S$72","v":0},{"$f":"SUM(C$193:C200)","v":0}]
[null,"9期終了時",{"$f":"'単位修得状況確認表（専門教育科目）'!U$72","v":0},{"$f":"IF(SUM($C227:$C$234)=0,\"\",SUM(C$193:C201))","v":""}]
[null,"10期終了時",{"$f":"'単位修得状況確認表（専門教育科目）'!W$72","v":0},{"$f":"IF(SUM($C228:$C$234)=0,\"\",SUM(C$193:C202))","v":""}]
[null,"11期終了時",{"$f":"'単位修得状況確認表（専門教育科目）'!Y$72","v":0},{"$f":"IF(SUM($C229:$C$234)=0,\"\",SUM(C$193:C203))","v":""}]
[null,"12期終了時",{"$f":"'単位修得状況確認表（専門教育科目）'!AA$72","v":0},{"$f":"IF(SUM($C230:$C$234)=0,\"\",SUM(C$193:C204))","v":""}]
[null,"13期終了時",{"$f":"'単位修得状況確認表（専門教育科目）'!AC$72","v":0},{"$f":"IF(SUM($C231:$C$234)=0,\"\",SUM(C$193:C205))","v":""}]
[null,"14期終了時",{"$f":"'単位修得状況確認表（専門教育科目）'!AE$72","v":0},{"$f":"IF(SUM($C232:$C$234)=0,\"\",SUM(C$193:C206))","v":""}]
[null,"15期終了時",{"$f":"'単位修得状況確認表（専門教育科目）'!AG$72","v":0},{"$f":"IF(SUM($C233:$C$234)=0,\"\",SUM(C$193:C207))","v":""}]
[null,"16期終了時",{"$f":"'単位修得状況確認表（専門教育科目）'!AI$72","v":0},{"$f":"IF(SUM($C234:$C$234)=0,\"\",SUM(C$193:C208))","v":""}]
[]
[]
[]
[]
[]
[]
[]
[null,"累積単位数"]
[]
[null,null,"取得単位数","累積取得単位数"]
[null,"1期終了時",{"$f":"SUM(C6,E6,G6,C45,E45,C84,C110,C141,C167,C193)","v":0},{"$f":"SUM(C$219:C219)","v":0}]
[null,"2期終了時",0,{"$f":"SUM(C$219:C220)","v":0}]
[null,"3期終了時",0,{"$f":"SUM(C$219:C221)","v":0}]
[null,"4期終了時",0,{"$f":"SUM(C$219:C222)","v":0}]
[null,"5期終了時",0,{"$f":"SUM(C$219:C223)","v":0}]
[null,"6期終了時",0,{"$f":"SUM(C$219:C224)","v":0}]
[null,"7期終了時",0,{"$f":"SUM(C$219:C225)","v":0}]
[null,"8期終了時",0,{"$f":"SUM(C$219:C226)","v":0}]
[null,"9期終了時",{"$f":"SUM(C14,E14,G14,C53,E53,C92,C118,C149,C175,C201)","v":0},{"$f":"IF(SUM($C227:$C$234)=0,\"\",SUM(C$219:C227))","v":""}]
[null,"10期終了時",0,{"$f":"IF(SUM($C228:$C$234)=0,\"\",SUM(C$219:C228))","v":""}]
[null,"11期終了時",0,{"$f":"IF(SUM($C229:$C$234)=0,\"\",SUM(C$219:C229))","v":""}]
[null,"12期終了時",0,{"$f":"IF(SUM($C230:$C$234)=0,\"\",SUM(C$219:C230))","v":""}]
[null,"13期終了時",0,{"$f":"IF(SUM($C231:$C$234)=0,\"\",SUM(C$219:C231))","v":""}]
[null,"14期終了時",0,{"$f":"IF(SUM($C232:$C$234)=0,\"\",SUM(C$219:C232))","v":""}]
[null,"15期終了時",0,{"$f":"IF(SUM($C233:$C$234)=0,\"\",SUM(C$219:C233))","v":""}]
[null,"16期終了時",0,{"$f":"IF(SUM($C234:$C$234)=0,\"\",SUM(C$219:C234))","v":""}]
[]
[]
[]
[]
[]
[]
[]
[]
[]
[]
[]
[]
[]
[]
[]
[]
[null,"GPA"]
[]
[null,null,"累積GP","累積GPA","GPA累積単位数","累積P","累積F"]
[null,"1期終了時",{"$f":"'単位修得状況確認表（共通教育科目，外国人留学生）'!I$25+'単位修得状況確認表（専門教育科目）'!F$74","v":0},{"$f":"IF(E254=0,\"\",C254/E254)","v":""},{"$f":"D219-F254+G254","v":0},{"$f":"'単位修得状況確認表（共通教育科目，外国人留学生）'!H$28+'単位修得状況確認表（専門教育科目）'!E$78","v":0},{"$f":"'単位修得状況確認表（共通教育科目，外国人留学生）'!H$29+'単位修得状況確認表（専門教育科目）'!E$79-'単位修得状況確認表（共通教育科目，外国人留学生）'!H$30-'単位修得状況確認表（専門教育科目）'!E$80","v":0}]
[null,"2期終了時",{"$f":"C254+'単位修得状況確認表（共通教育科目，外国人留学生）'!K$25+'単位修得状況確認表（専門教育科目）'!H$74","v":0},"",0,{"$f":"F254+'単位修得状況確認表（共通教育科目，外国人留学生）'!J$28+'単位修得状況確認表（専門教育科目）'!G$78","v":0},{"$f":"G254+'単位修得状況確認表（共通教育科目，外国人留学生）'!J$29+'単位修得状況確認表（専門教育科目）'!G$79-'単位修得状況確認表（共通教育科目，外国人留学生）'!J$30-'単位修得状況確認表（専門教育科目）'!G$80","v":0}]
[null,"3期終了時",{"$f":"C255+'単位修得状況確認表（共通教育科目，外国人留学生）'!M$25+'単位修得状況確認表（専門教育科目）'!J$74","v":0},"",0,{"$f":"F255+'単位修得状況確認表（共通教育科目，外国人留学生）'!L$28+'単位修得状況確認表（専門教育科目）'!I$78","v":0},{"$f":"G255+'単位修得状況確認表（共通教育科目，外国人留学生）'!L$29+'単位修得状況確認表（専門教育科目）'!I$79-'単位修得状況確認表（共通教育科目，外国人留学生）'!L$30-'単位修得状況確認表（専門教育科目）'!I$80","v":0}]
[null,"4期終了時",{"$f":"C256+'単位修得状況確認表（共通教育科目，外国人留学生）'!O$25+'単位修得状況確認表（専門教育科目）'!L$74","v":0},"",0,{"$f":"F256+'単位修得状況確認表（共通教育科目，外国人留学生）'!N$28+'単位修得状況確認表（専門教育科目）'!K$78","v":0},{"$f":"G256+'単位修得状況確認表（共通教育科目，外国人留学生）'!N$29+'単位修得状況確認表（専門教育科目）'!K$79-'単位修得状況確認表（共通教育科目，外国人留学生）'!N$30-'単位修得状況確認表（専門教育科目）'!K$80","v":0}]
[null,"5期終了時",{"$f":"C257+'単位修得状況確認表（共通教育科目，外国人留学生）'!Q$25+'単位修得状況確認表（専門教育科目）'!N$74","v":0},"",0,{"$f":"F257+'単位修得状況確認表（共通教育科目，外国人留学生）'!P$28+'単位修得状況確認表（専門教育科目）'!M$78","v":0},{"$f":"G257+'単位修得状況確認表（共通教育科目，外国人留学生）'!P$29+'単位修得状況確認表（専門教育科目）'!M$79-'単位修得状況確認表（共通教育科目，外国人留学生）'!P$30-'単位修得状況確認表（専門教育科目）'!M$80","v":0}]
[null,"6期終了時",{"$f":"C258+'単位修得状況確認表（共通教育科目，外国人留学生）'!S$25+'単位修得状況確認表（専門教育科目）'!P$74","v":0},"",0,{"$f":"F258+'単位修得状況確認表（共通教育科目，外国人留学生）'!R$28+'単位修得状況確認表（専門教育科目）'!O$78","v":0},{"$f":"G258+'単位修得状況確認表（共通教育科目，外国人留学生）'!R$29+'単位修得状況確認表（専門教育科目）'!O$79-'単位修得状況確認表（共通教育科目，外国人留学生）'!R$30-'単位修得状況確認表（専門教育科目）'!O$80","v":0}]
[null,"7期終了時",{"$f":"C259+'単位修得状況確認表（共通教育科目，外国人留学生）'!U$25+'単位修得状況確認表（専門教育科目）'!R$74","v":0},"",0,{"$f":"F259+'単位修得状況確認表（共通教育科目，外国人留学生）'!T$28+'単位修得状況確認表（専門教育科目）'!Q$78","v":0},{"$f":"G259+'単位修得状況確認表（共通教育科目，外国人留学生）'!T$29+'単位修得状況確認表（専門教育科目）'!Q$79-'単位修得状況確認表（共通教育科目，外国人留学生）'!T$30-'単位修得状況確認表（専門教育科目）'!Q$80","v":0}]
[null,"8期終了時",{"$f":"C260+'単位修得状況確認表（共通教育科目，外国人留学生）'!W$25+'単位修得状況確認表（専門教育科目）'!T$74","v":0},"",0,{"$f":"F260+'単位修得状況確認表（共通教育科目，外国人留学生）'!V$28+'単位修得状況確認表（専門教育科目）'!S$78","v":0},{"$f":"G260+'単位修得状況確認表（共通教育科目，外国人留学生）'!V$29+'単位修得状況確認表（専門教育科目）'!S$79-'単位修得状況確認表（共通教育科目，外国人留学生）'!V$30-'単位修得状況確認表（専門教育科目）'!S$80","v":0}]
[null,"9期終了時",{"$f":"C261+'単位修得状況確認表（共通教育科目，外国人留学生）'!Y$25+'単位修得状況確認表（専門教育科目）'!V$74","v":0},{"$f":"IF(OR(E262=0,E262=\"\"),\"\",C262/E262)","v":""},{"$f":"IF(D227=\"\",\"\",D227-F262+G262)","v":""},{"$f":"F261+'単位修得状況確認表（共通教育科目，外国人留学生）'!X$28+'単位修得状況確認表（専門教育科目）'!U$78","v":0},{"$f":"G261+'単位修得状況確認表（共通教育科目，外国人留学生）'!X$29+'単位修得状況確認表（専門教育科目）'!U$79-'単位修得状況確認表（共通教育科目，外国人留学生）'!X$30-'単位修得状況確認表（専門教育科目）'!U$80","v":0}]
[null,"10期終了時",{"$f":"C262+'単位修得状況確認表（共通教育科目，外国人留学生）'!AA$25+'単位修得状況確認表（専門教育科目）'!X$74","v":0},{"$f":"IF(OR(E263=0,E263=\"\"),\"\",C263/E263)","v":""},{"$f":"IF(D228=\"\",\"\",D228-F263+G263)","v":""},{"$f":"F262+'単位修得状況確認表（共通教育科目，外国人留学生）'!Z$28+'単位修得状況確認表（専門教育科目）'!W$78","v":0},{"$f":"G262+'単位修得状況確認表（共通教育科目，外国人留学生）'!Z$29+'単位修得状況確認表（専門教育科目）'!W$79-'単位修得状況確認表（共通教育科目，外国人留学生）'!Z$30-'単位修得状況確認表（専門教育科目）'!W$80","v":0}]
[null,"11期終了時",{"$f":"C263+'単位修得状況確認表（共通教育科目，外国人留学生）'!AC$25+'単位修得状況確認表（専門教育科目）'!Z$74","v":0},"","",{"$f":"F263+'単位修得状況確認表（共通教育科目，外国人留学生）'!AB$28+'単位修得状況確認表（専門教育科目）'!Y$78","v":0},{"$f":"G263+'単位修得状況確認表（共通教育科目，外国人留学生）'!AB$29+'単位修得状況確認表（専門教育科目）'!Y$79-'単位修得状況確認表（共通教育科目，外国人留学生）'!AB$30-'単位修得状況確認表（専門教育科目）'!Y$80","v":0}]
[null,"12期終了時",{"$f":"C264+'単位修得状況確認表（共通教育科目，外国人留学生）'!AE$25+'単位修得状況確認表（専門教育科目）'!AB$74","v":0},"","",{"$f":"F264+'単位修得状況確認表（共通教育科目，外国人留学生）'!AD$28+'単位修得状況確認表（専門教育科目）'!AA$78","v":0},{"$f":"G264+'単位修得状況確認表（共通教育科目，外国人留学生）'!AD$29+'単位修得状況確認表（専門教育科目）'!AA$79-'単位修得状況確認表（共通教育科目，外国人留学生）'!AD$30-'単位修得状況確認表（専門教育科目）'!AA$80","v":0}]
[null,"13期終了時",{"$f":"C265+'単位修得状況確認表（共通教育科目，外国人留学生）'!AG$25+'単位修得状況確認表（専門教育科目）'!AD$74","v":0},"","",{"$f":"F265+'単位修得状況確認表（共通教育科目，外国人留学生）'!AF$28+'単位修得状況確認表（専門教育科目）'!AC$78","v":0},{"$f":"G265+'単位修得状況確認表（共通教育科目，外国人留学生）'!AF$29+'単位修得状況確認表（専門教育科目）'!AC$79-'単位修得状況確認表（共通教育科目，外国人留学生）'!AF$30-'単位修得状況確認表（専門教育科目）'!AC$80","v":0}]
[null,"14期終了時",{"$f":"C266+'単位修得状況確認表（共通教育科目，外国人留学生）'!AI$25+'単位修得状況確認表（専門教育科目）'!AF$74","v":0},"","",{"$f":"F266+'単位修得状況確認表（共通教育科目，外国人留学生）'!AH$28+'単位修得状況確認表（専門教育科目）'!AE$78","v":0},{"$f":"G266+'単位修得状況確認表（共通教育科目，外国人留学生）'!AH$29+'単位修得状況確認表（専門教育科目）'!AE$79-'単位修得状況確認表（共通教育科目，外国人留学生）'!AH$30-'単位修得状況確認表（専門教育科目）'!AE$80","v":0}]
[null,"15期終了時",{"$f":"C267+'単位修得状況確認表（共通教育科目，外国人留学生）'!AK$25+'単位修得状況確認表（専門教育科目）'!AH$74","v":0},"","",{"$f":"F267+'単位修得状況確認表（共通教育科目，外国人留学生）'!AJ$28+'単位修得状況確認表（専門教育科目）'!AG$78","v":0},{"$f":"G267+'単位修得状況確認表（共通教育科目，外国人留学生）'!AJ$29+'単位修得状況確認表（専門教育科目）'!AG$79-'単位修得状況確認表（共通教育科目，外国人留学生）'!AJ$30-'単位修得状況確認表（専門教育科目）'!AG$80","v":0}]
[null,"16期終了時",{"$f":"C268+'単位修得状況確認表（共通教育科目，外国人留学生）'!AM$25+'単位修得状況確認表（専門教育科目）'!AJ$74","v":0},"","",{"$f":"F268+'単位修得状況確認表（共通教育科目，外国人留学生）'!AL$28+'単位修得状況確認表（専門教育科目）'!AI$78","v":0},{"$f":"G268+'単位修得状況確認表（共通教育科目，外国人留学生）'!AL$29+'単位修得状況確認表（専門教育科目）'!AI$79-'単位修得状況確認表（共通教育科目，外国人留学生）'!AL$30-'単位修得状況確認表（専門教育科目）'!AI$80","v":0}]